Cogmind - Beta 14 @@@ ROGUE MODE // 2025.04.29 @ 10:34:07 Player: Domo Result: Destroyed by P-60 Hacker with Shock Rifle Performance ------------- Evolutions (3) 1500 Regions Visited (5) 1000 Robots Destroyed (38) 190 Value Destroyed (1182) 1182 Prototype IDs (1) 20 Alien Tech Used (0) 0 Bonus (65) 65 TOTAL SCORE: 3957 Bonus ------- Follower Combat Kills 126 Friendly Fire -61 Cogmind --------- Core Integrity 0/700 Matter 276/300 Energy 99/100 System Corruption 5% Temperature Cool (-100) Movement Walking (130) Location -7/Factory Parts ------- > --- POWER (1) -------- (None) > --- PROPULSION (3) --- Titanium Leg > --- UTILITY (6) ------ Cryofiber Web Melee Analysis Suite > --- WEAPON (3) ------- Axe > --- INVENTORY (5) ---- (None) Peak State ------------ > --- POWER ------------ Improved Deuterium Engine > --- PROPULSION ------- Gravmag System > --- UTILITY ---------- Improved Heat Sink Advanced Weight Redist. System Melee Analysis Suite Melee Analysis Suite Utility Shielding Improved Medium Armor Plating > --- WEAPON ----------- Heavy Laser Heavy Laser Axe > --- INVENTORY -------- Light Nuclear Core Xenon Bombardment Thruster Cryofiber Web Compact Battery Improved Light Armor Plating [Rating: 37] Favorites ----------- Power Light Nuclear Core Engine Ion Engine Power Core Light Nuclear Core Propulsion Aluminum Leg Leg Aluminum Leg Hover Unit Gravmag System Flight Unit Xenon Bombardment Thruster Utility Utility Shielding Device Improved Heat Sink Storage Small Storage Unit Processor Melee Analysis Suite Hackware Hacking Suite Protection Utility Shielding Weapon Field Laser Energy Gun Field Laser Ballistic Gun Assault Rifle Launcher Grenade Launcher Impact Weapon Hammer Slashing Weapon Axe Build | -11 -10 -10 -9 -8 -7 ------- Run | Yrd Mat Min Mat Mat Fac Slots Evolved 6 | . . . 2 2 2 Power . | . . . . . . Propulsion 1 | . . . 1 . . Utility 4 | . . . . 2 2 Weapon 1 | . . . 1 . . Parts Attached 56 | 7 3 . 7 19 20 Power 8 | 1 . . 1 3 3 Engine 4 | 1 . . 1 1 1 Core 4 | . . . . 2 2 Reactor . | . . . . . . Propulsion 18 | 2 1 . 3 5 7 Treads . | . . . . . . Leg 12 | 2 1 . 3 5 1 Wheel . | . . . . . . Hover 5 | . . . . . 5 Flight 1 | . . . . . 1 Utility 17 | 1 1 . . 7 8 Device 5 | . . . . 2 3 Storage 3 | 1 . . . 1 1 Processor 3 | . . . . 1 2 Hackware 1 | . . . . 1 . Protection 5 | . 1 . . 2 2 Artifact . | . . . . . . Weapon 13 | 3 1 . 3 4 2 Energy Gun 6 | 1 . . . 3 2 Energy Cannon . | . . . . . . Ballistic Gun 3 | 2 . . 1 . . Ballistic Cannon . | . . . . . . Launcher 2 | . 1 . 1 . . Special Weapon . | . . . . . . Impact Weapon 1 | . . . 1 . . Slashing Weapon 1 | . . . . 1 . Piercing Weapon . | . . . . . . Special Melee Weapon . | . . . . . . Unidentified Prototypes 1 | . . . . . 1 Parts Lost 29 | . . . 2 8 19 Power 5 | . . . 1 2 2 Propulsion 8 | . . . . 1 7 Utility 10 | . . . . 3 7 Weapon 6 | . . . 1 2 3 Highest Loss Streak 8 | . . . 2 3 8 To Critical Strikes . | . . . . . . Average Slot Usage (%) 89 | . 98 100 91 93 76 Engine 6 | . 14 14 8 5 1 Core 2 | . . . . 3 5 Leg 21 | . 28 28 27 26 9 Device 5 | . . . . 5 10 Storage 5 | . 14 14 11 1 3 Processor 6 | . . . . 4 14 Hackware 2 | . . . . 6 . Protection 13 | . 12 14 11 15 13 Energy Gun 5 | . . . . 9 5 Ballistic Gun 5 | . 16 14 11 2 . Launcher 4 | . 11 14 11 2 . Impact Weapon 4 | . . . 11 9 . Slashing Weapon 2 | . . . . . 7 Peak Build Rating 37 | 6 7 7 10 28 37 Average Rating 19 | 4 6 7 9 22 27 On Entrance 9 | . 6 7 7 10 24 Naked Turns . | . . . . . . Heaviest Build 32 | 14 16 16 19 32 32 Greatest Support 42 | 20 20 20 30 42 37 Greatest Overweight (x) 4 | 2 . . . . 4 Average Overweight (x) . | . . . . . . Largest Inventory Capacity 10 | 8 8 8 8 10 10 Average Capacity 6 | 7 8 8 8 5 7 Most Carried 7 | 2 7 7 7 7 6 Average Carried 4 | . 4 6 4 4 4 Final Capacity 10 | 8 8 8 8 10 5 Final Carried 7 | 1 7 7 3 4 . Class Distribution -------------------- 63% | Mutant 36% | Scavenger-Mutant Dominant Class ---------------- Mutant | -10/Materials Mutant | -10/Mines Mutant | -9/Materials Scavenger-Mutant | -8/Materials Mutant | -7/Factory Resources | -11 -10 -10 -9 -8 -7 ----------- Run | Yrd Mat Min Mat Mat Fac Matter Collected 891 | 212 95 37 89 332 126 Remotely . | . . . . . . Salvage Created 1090 | . 240 8 31 517 294 Parts 65 | . 17 3 8 22 15 Haulers Intercepted . | . . . . . . Recyclers Shooed . | . . . . . . Parts Field Recycled . | . . . . . . Retrieved Matter . | . . . . . . Parts Self-Destructed . | . . . . . . Prevented . | . . . . . . Kills | -11 -10 -10 -9 -8 -7 ------- Run | Yrd Mat Min Mat Mat Fac Combat Hostiles Destroyed 33 | . 10 2 4 13 4 Melee 9 | . . . . 6 3 Guns 12 | . 4 . 1 6 1 AOE 11 | . 6 2 3 . . Classes Destroyed 8 | . 4 . 1 2 1 Recycler 3 | . 1 . . 1 1 Operator 1 | . . . 1 . . Watcher 1 | . 1 . . . . Swarmer 14 | . 5 2 3 4 . Grunt 12 | . 5 . 1 6 . Sentry 4 | . . . . 2 2 Hunter 1 | . . . . 1 . Programmer 2 | . . . . . 2 Best Kill Streak 8 | . 8 2 3 4 1 Combat Bots Only 7 | . 7 2 3 3 1 Max Kills in Single Turn 2 | . 2 1 1 1 1 Gunslinging . | . . . . . . Exploded 2 | . 2 1 1 . . Melee 1 | . . . . 1 1 Uniques/NPCs Destroyed . | . . . . . . Combat | -11 -10 -10 -9 -8 -7 -------- Run | Yrd Mat Min Mat Mat Fac Hostile Shots Fired 443 | . 32 8 29 167 207 Missed 163 | . 11 4 6 71 71 Damage Taken 3719 | . 231 31 258 1199 2000 Core 978 | . 37 9 46 173 713 Absorbed by Shields . | . . . . . . Redirected to Shielding 57 | . . . . 20 37 Core Remaining (%) 84 | 100 . 81 88 68 . Volleys Fired 87 | . 21 2 12 43 9 Largest 2 | . 2 1 1 2 2 Hottest 138 | . 40 30 30 126 138 Shots Fired 109 | . 22 2 12 56 17 Gun 87 | . 13 . 4 53 17 Cannon . | . . . . . . Launcher 22 | . 9 2 8 3 . Special . | . . . . . . Kinetic 20 | . 13 . 4 3 . Thermal 67 | . . . . 50 17 Explosive 22 | . 9 2 8 3 . Electromagnetic . | . . . . . . Robot Hit Streak 9 | . 7 . 9 9 5 Robot Miss Streak 2 | . 2 . 2 2 1 Penetration Max . | . . . . . . Secondary Targets . | . . . . . . Shots Hit Robots 104 | . 11 . 4 60 29 Core Hits 56 | . 16 2 7 21 10 Critical Kills 1 | . . . . 1 . Critical Parts Destroyed 2 | . . . . 2 . Critical Strikes 7 | . . . . 5 2 Burn 2 | . . . . 2 . Smash 3 | . . . . 3 . Sever 2 | . . . . . 2 Melee Attacks 47 | . . . . 31 16 Impact 27 | . . . . 27 . Slashing 20 | . . . . 4 16 Piercing . | . . . . . . Sneak Attacks 3 | . . . . 2 1 Combat Hostiles 1 | . . . . 1 . Follow-up Attacks . | . . . . . . Damage Inflicted 3355 | . 677 74 406 1309 889 Guns 1074 | . 127 . 30 660 257 Cannons . | . . . . . . Explosions 1113 | . 550 74 376 113 . Melee 1162 | . . . . 530 632 Ramming 6 | . . . . 6 . Kinetic 174 | . 127 . 30 17 . Thermal 900 | . . . . 643 257 Explosive 1113 | . 550 74 376 113 . Electromagnetic . | . . . . . . Impact 426 | . . . . 426 . Slashing 736 | . . . . 104 632 Piercing . | . . . . . . Highest Corruption 5 | . . . . . 5 Average Corruption 1 | . . . . . 1 Corruption Purged . | . . . . . . Corruption Blocked . | . . . . . . Effects 7 | . . . . . 7 Message Errors 4 | . . . . . 4 Energy Discharges 1 | . . . . . 1 Alerts 1 | . . . . . 1 Weapon Failures 1 | . . . . . 1 Overload Shots . | . . . . . . Overflow Damage 181 | . 84 . 18 69 10 Projectiles . | . . . . . . Explosions 102 | . 84 . 18 . . Melee 79 | . . . . 69 10 Knockbacks 2 | . . . . 2 . Impact 2 | . . . . 2 . Kinetic . | . . . . . . Secondary . | . . . . . . Self-Inflicted Damage 39 | . 23 . . 16 . Shots 2 | . 1 . . 1 . Rammed . | . . . . . . Targets Rammed 2 | . . . . 2 . Kicked 2 | . . . . 2 . Crushed . | . . . . . . Highest Temperature 330 | . 4 . 15 330 188 Average Temperature 100 | . 3 . 9 118 66 Received Heat Transfer 1212 | . 69 . 60 405 678 Siege Activations . | . . . . . . Robots Corrupted 1 | . . . . 1 . Combat Hostiles . | . . . . . . Parts Fried 3 | . . . . 3 . Impact Corruptions 3 | . . . . 3 . Robots Melted 1 | . . . . 1 . Combat Hostiles 1 | . . . . 1 . Parts Melted 2 | . . . . 2 . Heat Transferred 2035 | . . . . 1554 481 Parts Sabotaged . | . . . . . . Parts Stolen . | . . . . . . Parts Stripped . | . . . . . . Power Chain Reactions . | . . . . . . Alert | -11 -10 -10 -9 -8 -7 ------- Run | Yrd Mat Min Mat Mat Fac Peak Influence 487 | . 184 300 487 288 109 Initial 205 | . . 71 117 205 84 Average 145 | . 49 129 335 221 56 Maximum Alert Level 2 | . . 1 2 1 . Low Security (%) 62 | 100 100 74 10 26 100 Level 1 35 | . . 25 51 73 . Level 2 2 | . . . 37 . . Level 3 . | . . . . . . Level 4 . | . . . . . . Level 5 . | . . . . . . High Security . | . . . . . . Max Security . | . . . . . . Squads Dispatched 11 | . 2 . 2 5 2 Investigation 4 | . 1 . . 2 1 Extermination 1 | . . . . . 1 Reinforcement 3 | . 1 . 2 . . Assault . | . . . . . . Garrison 3 | . . . . 3 . Intercept . | . . . . . . Searches Triggered . | . . . . . . Construction Impeded . | . . . . . . Haulers Reinforced . | . . . . . . Active Scanning Responses . | . . . . . . Cargo Convoy Interrupts . | . . . . . . Stealth | -11 -10 -10 -9 -8 -7 --------- Run | Yrd Mat Min Mat Mat Fac Distress Signals 5 | . 1 . 3 1 . Communications Jammed . | . . . . . . Distress Signals . | . . . . . . Times Spotted 63 | . 12 3 16 22 10 Peak Tracking Total 6 | . 5 3 6 3 4 Tactical Retreats 4 | . 1 . . 3 . Traps | -11 -10 -10 -9 -8 -7 ------- Run | Yrd Mat Min Mat Mat Fac Traps Triggered . | . . . . . . Indirectly . | . . . . . . Trap Hack Attempts . | . . . . . . Triggered . | . . . . . . Disarmed . | . . . . . . Reprogrammed . | . . . . . . Reused . | . . . . . . Traps Extracted . | . . . . . . Installed . | . . . . . . Triggered . | . . . . . . Machines | -11 -10 -10 -9 -8 -7 ---------- Run | Yrd Mat Min Mat Mat Fac Machines Disabled 12 | . 1 8 1 2 . Max in Single Turn 2 | . 1 . . 2 . Machines Repaired . | . . . . . . Machines Dismantled . | . . . . . . Machines Sabotaged . | . . . . . . Overloaded Fab Kills . | . . . . . . Hacking | -11 -10 -10 -9 -8 -7 --------- Run | Yrd Mat Min Mat Mat Fac Machines Accessed 8 | . 2 . . 4 2 Terminals 7 | . 2 . . 3 2 Fabricators . | . . . . . . Repair Stations . | . . . . . . Recycling Units . | . . . . . . Scanalyzers 1 | . . . . 1 . Garrison Access . | . . . . . . Total Hacks 24 | . 9 . . 12 3 Successful 6 | . 1 . . 4 1 Failed 18 | . 8 . . 8 2 Catastrophic 5 | . . . . 4 1 Database Lockouts . | . . . . . . Manual 8 | . . . . 6 2 Terminals 21 | . 9 . . 9 3 Fabricators . | . . . . . . Repair Stations . | . . . . . . Recycling Units . | . . . . . . Scanalyzers 3 | . . . . 3 . Garrison Access . | . . . . . . Terminal Hacks 3 | . 1 . . 1 1 Record 1 | . . . . 1 . Open DSF 1 | . . . . . 1 Zone Layout 1 | . 1 . . . . Fabricator Hacks . | . . . . . . Repair Station Hacks . | . . . . . . Recycling Unit Hacks . | . . . . . . Scanalyzer 3 | . . . . 3 . Insert Component 2 | . . . . 2 . Analyze 1 | . . . . 1 . Garrison Access Hacks . | . . . . . . Unauthorized Hacks . | . . . . . . Terminals . | . . . . . . Fabricators . | . . . . . . Repair Stations . | . . . . . . Recycling Units . | . . . . . . Scanalyzers . | . . . . . . Garrison Access . | . . . . . . Data Cores Recovered . | . . . . . . Used . | . . . . . . Hacking Detections 8 | . 2 . . 4 2 Full Trace Events 6 | . 2 . . 3 1 Feedback Events . | . . . . . . Feedback Blocked . | . . . . . . Robot Schematics Acquired . | . . . . . . Robots Built . | . . . . . . Authchips . | . . . . . . Time . | . . . . . . Total Robot Build Rating . | . . . . . . Part Schematics Acquired 1 | . . . . 1 . Parts Built . | . . . . . . Authchips . | . . . . . . Time . | . . . . . . Total Part Build Rating . | . . . . . . Parts Repaired . | . . . . . . Time . | . . . . . . Parts Recycled . | . . . . . . Recycled Matter . | . . . . . . Retrieved Matter . | . . . . . . Retrieved Components . | . . . . . . Parts Scanalyzed 1 | . . . . 1 . Part Schematics Acquired 1 | . . . . 1 . Parts Damaged . | . . . . . . Bothacking | -11 -10 -10 -9 -8 -7 ------------ Run | Yrd Mat Min Mat Mat Fac Used RIF Installer . | . . . . . . Robots Hacked . | . . . . . . Non-combat . | . . . . . . Combat . | . . . . . . Robot Hacks Applied . | . . . . . . Relay Couplers Released . | . . . . . . Fabnet Peak Effective % . | . . . . . . Robots Rewired . | . . . . . . Allies Hacked . | . . . . . . Hacks Repelled . | . . . . . . Allies | -11 -10 -10 -9 -8 -7 -------- Run | Yrd Mat Min Mat Mat Fac Total Allies 2 | . . 2 . . . Largest Group 2 | . . 2 2 1 . Highest-Rated Group 39 | . . 39 39 31 . Highest-Rated Ally 31 | . . 31 31 31 . Total Orders . | . . . . . . Ally Attacks 32 | . . 6 19 7 . Total Damage 463 | . . 110 291 62 . Kills 9 | . . 1 7 1 . Allies Corrupted . | . . . . . . Allies Melted . | . . . . . . Intel | -11 -10 -10 -9 -8 -7 ------- Run | Yrd Mat Min Mat Mat Fac Robot Analysis Total . | . . . . . . Derelict Logs Recovered . | . . . . . . Drone Launches . | . . . . . . Drone Recoveries . | . . . . . . Exploration | -11 -10 -10 -9 -8 -7 ------------- Run | Yrd Mat Min Mat Mat Fac Turns Passed 3208 | 67 450 227 232 1279 953 Spaces Moved 2072 | 41 272 180 154 735 690 Core 185 | 7 . . . . 178 Treads . | . . . . . . Legs 1665 | 34 272 180 154 735 290 Wheels . | . . . . . . Hover 202 | . . . . . 202 Flight 20 | . . . . . 20 Fastest Speed 50 | 50 120 120 120 120 56 Average Speed 119 | 134 120 120 120 121 115 Slowest Speed 260 | 190 120 120 120 125 260 Overloaded Moves . | . . . . . . Propulsion Burnouts . | . . . . . . Robots Hopped . | . . . . . . Cave-ins Triggered . | . . . . . . Exploration Rate (%) 28 | 4 38 48 20 44 14 Regions Visited 5 Branch Regions 1 Pre-discovered Areas . | . . . . . . Known Exits Taken . | . . . . . . Unknown Exits Taken 5 | 1 1 1 1 1 . Scrap Searched 1 | . . 1 . . . Spaces Dug . | . . . . . . Terrain Destroyed 128 | . 54 15 37 22 . Melee . | . . . . . . Projectile . | . . . . . . AOE 128 | . 54 15 37 22 . Terrain Rammed . | . . . . . . Walls Destroyed . | . . . . . . Machines Disabled . | . . . . . . Actions | -11 -10 -10 -9 -8 -7 --------- Run | Yrd Mat Min Mat Mat Fac Total 2604 | 50 372 189 189 1005 799 Wait 283 | . 71 6 10 151 45 Move 2067 | 40 271 179 153 734 690 Hop . | . . . . . . Pick Up 31 | 1 6 1 3 13 7 Fast Attach 27 | 7 1 . 1 9 9 Attach 14 | . . . 3 4 7 Detach 5 | 1 . . . 1 3 Swap 15 | . 2 . 3 6 4 Drop 26 | 1 . 1 4 11 9 Fire 87 | . 21 2 12 43 9 Melee 47 | . . . . 31 16 Ram . | . . . . . . Kick 2 | . . . . 2 . Crush . | . . . . . . Escape Stasis . | . . . . . . Rewire . | . . . . . . Trap . | . . . . . . Miscellaneous . | . . . . . . Route ------- -11/Scrapyard -10/Materials -10/Mines -9/Materials -8/Materials -7/Factory History --------- Turn | Location | Event 25 | -11/Scrapyard | Discovered new exit (range 16) 68 | -11/Scrapyard | Entered Materials 155 | -10/Materials | Discovered new exit (range 17) 303 | -10/Materials | Build established: Mutant 518 | -10/Materials | Entered Mines 526 | -10/Mines | Destroyed 7 combat bots 628 | -10/Mines | Found a hidden stash of uninstalled traps 704 | -10/Mines | Discovered new exit (range 14) 745 | -10/Mines | Entered Materials 745 | -9/Materials | Accompanied by 2 allies 745 | -9/Materials | Evolved 2 slots: Propulsion x1, Weapon x1 750 | -9/Materials | Led the pair of lost Derelicts to an unsafe place 942 | -9/Materials | Discovered new exit (range 3) 977 | -9/Materials | Entered another Materials area 977 | -8/Materials | Accompanied by 1 ally 977 | -8/Materials | Evolved 2 slots: Utility x2 1271 | -8/Materials | Build established: Scavenger-Mutant 1740 | -8/Materials | Garrison activated, responded to threat 1786 | -8/Materials | Build established: Mutant 2141 | -8/Materials | Lost 3 parts (1p2u) 2144 | -8/Materials | Discovered new exit (range 11) 2256 | -8/Materials | Entered Factory 2256 | -7/Factory | Evolved 2 slots: Utility x2 2516 | -7/Factory | Identified exit to DSF 2539 | -7/Factory | Build established: Scavenger-Mutant 2916 | -7/Factory | Build established: Mutant 3123 | -7/Factory | Lost 8 parts (1p1n4u2w) 3136 | -7/Factory | Core integrity fell below 50% 3183 | -7/Factory | Core integrity fell below 20% 3209 | -7/Factory | Destroyed by P-60 Hacker with Shock Rifle Last Messages --------------- K-01 Serf collects debris. U-05 Engineer lays Concrete. U-05 Engineer builds a Wall. M-28 Smith fits Backup Propulsion III on G-47 Trooper. K-01 Serf collects debris. U-05 Engineer lays Concrete. U-05 Engineer builds a Wall. Imp. Light Armor Plating destroyed. Acquired Prototype Hover Unit. Identified Imp. Airjet. Faulty integration damages Faulty Imp. Airjet (-44). Faulty Imp. Airjet destroyed. Melee Analysis Suite destroyed. Critical hit (Burn: +37). ,XSV= 0YN&|>B8QICXN:DE9NGO Acquired Titanium Leg. Mic. Nuclear Core destroyed. Critical hit (Burn: +37). Map ----- +----------------------------------------------------+ | # % ! #### ## #????????????????????? | | # """ # #????????????????????? | | # """ # #????????????????????? | | # """ # #????????????????????? | | # # # #????????????????????? | | # # # +????????????????????? | | # ###### # #????????????????????? | | # #??# # # #????????????????????? | | # #??# # # ###################??? | | # #??## ## # # ?? | | + #???# # ## ?? | | # #???############ ? | | ## #??????????????# ? | | ?# #??????????????# ? | | ?# #??????????????###########+########???????? | | ?# #????????????????# #???????????? | | ? #????????????????# """"""""" #???????????? | | ? #????????????????# #???????????? | | ?""" +????????????????# """"""""" #???????????? | | ?""" #????????????????# #???????????? | | ?""" #????????????????# """"""""" #???????????? | | ???? #????????????????# #???????????? | | ???? #????????????????# """"""""" #???????????? | | ???? #????????????????# g #???????????? | | ????? =?????????????????# """""""""g #???????????? | | ????????????????????????#@ p #???????????? | | ????????????????????????# g #???????????? | | ????????????????????????##############???????????? | | ?????????????????????????????????????????????????? | | ?????????????????????????????????????????????????? | | ?????????????????????????????????????????????????? | | ?????????????????????????????????????????????????? | | ?????????????????????????????????????????????????? | | ?????????????????????????????????????????????????? | | ?????????????????????????????????????????????????? | | ?????????????????????????????????????????????????? | | ?????????????????????????????????????????????????? | | ?????????????????????????????????????????????????? | | ?????????????????????????????????????????????????? | | ?????????????????????????????????????????????????? | | ?????????????????????????????????????????????????? | | ?????????????????????????????????????????????????? | | ?????????????????????????????????????????????????? | | ?????????????????????????????????????????????????? | | ?????????????????????????????????????????????????? | | ?????????????????????????????????????????????????? | | ?????????????????????????????????????????????????? | | ?????????????????????????????????????????????????? | | ?????????????????????????????????????????????????? | | ?????????????????????????????????????????????????? | +----------------------------------------------------+ Best States ------------- Heat Dissipation 48 Energy Generation 16 Energy Capacity 350 Matter Stores 300 Matter Capacity 300 Sight Range 20 Terrain Scan Density 10 Additional Mass Support 9 Base Temperature (-) 100 Armor Coverage 225 Utility Shielding 33 Evasion (%) 63 Melee Accuracy 10 Offensive Hacking 10 Item Schematics ----------------- Titanium Leg | -8/Materials | Scanalyzed Robot Schematics ------------------ None Fabricated ------------ Nothing Alien Tech Used ----------------- None Achievements -------------- None Challenges ------------ None Game ------ Seed CooledBottomlessRipper Manual? 0 Play Time 00:58:17 Cumulative 14.3 hours Start 2025.04.29 @ 09:29:51 End 2025.04.29 @ 10:34:07 Sessions 1 Manual Loads 0 Difficulty Rogue Special Mode None Game No. 17 Rogue 6 Adventurer 11 Explorer 0 Win Type - Total 0 Types 0/0/0/0/0/0/0/0/0 Lore% 4 Gallery% 12 Achievement% 14 Wizard Run 0 Options --------- Layout 1 ASCII 0 Keyboard 1 Movement Vi Keybinds 0 Fullscreen 2 Font 24/Smallcaps Map View 50x35 Zoom Use 0% Tactical HUD 0 Map Filters NONE Filters NONE Steam 1 RUN: 7477ae91-29dd-4beb-8480-4d8200eb3b00